Cogmind - Beta 14 @@@ ROGUE MODE // 2024.09.07 @ 14:03:33 Player: Dhoby_ghaut Result: Self-destructed Performance ------------- Evolutions (2) 1000 Regions Visited (3) 600 Robots Destroyed (15) 75 Value Destroyed (359) 359 Prototype IDs (1) 20 Alien Tech Used (0) 0 Bonus (0) 0 TOTAL SCORE: 2054 Bonus ------- None Cogmind --------- Core Integrity 514/550 Matter 182/300 Energy 125/125 System Corruption 0% Temperature Cool (0) Movement Rolling (131) Ox3 Location -8/Materials Parts ------- > --- POWER (1) -------- Light Ion Engine > --- PROPULSION (3) --- Wheel Subdweller Monowheel > --- UTILITY (4) ------ Huge Storage Unit Seismic Detector Recoil Stabilizer > --- WEAPON (3) ------- Battle Rifle Battle Rifle Battle Cannon > --- INVENTORY (25) --- Improved Terrain Scan Processor Hardened Medium Armor Plating Scrap Shield Subdweller Laser Light EM Pulse Cannon Barrage Gun Advanced EMP Blaster Grenade Launcher Peak State ------------ > --- POWER ------------ Light Ion Engine > --- PROPULSION ------- Wheel Subdweller Monowheel > --- UTILITY ---------- Advanced Weight Redist. System Seismic Detector Scrap Shield > --- WEAPON ----------- Battle Rifle Battle Rifle Advanced EMP Blaster > --- INVENTORY -------- Melee Analysis Suite Subdweller Laser Barrage Gun Battle Cannon Grenade Launcher [Rating: 21] Favorites ----------- Power Light Ion Engine Engine Light Ion Engine Propulsion Light Treads Treads Light Treads Wheel Wheel Utility Small Storage Unit Device Seismic Detector Storage Small Storage Unit Protection Scrap Shield Weapon Battle Rifle Energy Gun Medium Laser Ballistic Gun Battle Rifle Ballistic Cannon Battle Cannon Launcher Grenade Launcher Build | -11 -10 -10 -8 ------- Run | Yrd Mat Sub Mat Slots Evolved 4 | . . . 4 Power . | . . . . Propulsion 1 | . . . 1 Utility 2 | . . . 2 Weapon 1 | . . . 1 Parts Attached 32 | 7 2 15 8 Power 2 | 1 . 1 . Engine 2 | 1 . 1 . Core . | . . . . Reactor . | . . . . Propulsion 6 | 2 . 4 . Treads 2 | 2 . . . Leg . | . . . . Wheel 4 | . . 4 . Hover . | . . . . Flight . | . . . . Utility 11 | 2 . 5 4 Device 8 | 1 . 4 3 Storage 2 | 1 . . 1 Processor . | . . . . Hackware . | . . . . Protection 1 | . . 1 . Artifact . | . . . . Weapon 13 | 2 2 5 4 Energy Gun 2 | 1 . 1 . Energy Cannon . | . . . . Ballistic Gun 6 | 1 1 2 2 Ballistic Cannon 2 | . . 1 1 Launcher 3 | . 1 1 1 Special Weapon . | . . . . Impact Weapon . | . . . . Slashing Weapon . | . . . . Piercing Weapon . | . . . . Special Melee Weapon . | . . . . Unidentified Prototypes 1 | . . . 1 Parts Lost 4 | . . 4 . Power . | . . . . Propulsion 3 | . . 3 . Utility . | . . . . Weapon 1 | . . 1 . Highest Loss Streak 2 | . . 2 . To Critical Strikes . | . . . . Average Slot Usage (%) 93 | . 100 95 80 Engine 13 | . 14 14 9 Treads 11 | . 28 10 . Wheel 13 | . . 16 18 Device 11 | . 14 10 17 Storage 9 | . 14 10 1 Protection 3 | . . 3 8 Energy Gun 4 | . 13 3 . Ballistic Gun 17 | . 14 17 20 Ballistic Cannon 5 | . . 7 6 Peak Build Rating 21 | 7 7 13 21 Average Rating 10 | 4 7 9 18 On Entrance 6 | . 7 7 13 Naked Turns . | . . . . Heaviest Build 92 | 13 14 26 92 Greatest Support 40 | 40 40 40 39 Greatest Overweight (x) 3 | . . 2 3 Average Overweight (x) . | . . . . Largest Inventory Capacity 25 | 8 8 8 25 Average Capacity 7 | 7 8 7 7 Most Carried 9 | 4 6 8 9 Average Carried 6 | 2 4 6 5 Final Capacity 25 | 8 8 5 25 Final Carried 9 | 4 6 5 9 Class Distribution -------------------- 84% | Mutant 14% | Tank Dominant Class ---------------- Mutant | -10/Materials Mutant | -10/Subcaves Tank | -8/Materials Resources | -11 -10 -10 -8 ----------- Run | Yrd Mat Sub Mat Matter Collected 730 | 297 27 401 5 Remotely . | . . . . Salvage Created 463 | 156 68 194 45 Parts 18 | 7 3 7 1 Haulers Intercepted . | . . . . Recyclers Shooed . | . . . . Parts Field Recycled . | . . . . Retrieved Matter . | . . . . Parts Self-Destructed 14 | . . 14 . Prevented . | . . . . Kills | -11 -10 -10 -8 ------- Run | Yrd Mat Sub Mat Combat Hostiles Destroyed 10 | . 3 6 1 Guns 7 | . 3 3 1 Cannons 1 | . . 1 . AOE 2 | . . 2 . Classes Destroyed 5 | 2 1 1 1 Tunneler 4 | 3 1 . . Recycler 1 | 1 . . . Swarmer 3 | . 3 . . Hunter 1 | . . . 1 Subdweller 6 | . . 6 . Best Kill Streak 3 | 3 2 2 1 Combat Bots Only 2 | . 2 2 1 Max Kills in Single Turn 1 | 1 1 1 1 Gunslinging . | . . . . Exploded 1 | . . 1 . Melee . | . . . . Uniques/NPCs Destroyed . | . . . . Combat | -11 -10 -10 -8 -------- Run | Yrd Mat Sub Mat Hostile Shots Fired 81 | . 12 63 6 Missed 21 | . 3 17 1 Damage Taken 1196 | . 74 1027 95 Core 201 | . 9 156 36 Absorbed by Shields . | . . . . Regen/Repaired (Parts) 20 | . . . 20 Core Remaining (%) 67 | 100 . 34 . Volleys Fired 70 | 9 11 45 5 Largest 3 | 2 2 2 3 Hottest 89 | 70 70 89 89 Shots Fired 140 | 18 21 90 11 Gun 119 | 18 19 76 6 Cannon 15 | . . 10 5 Launcher 6 | . 2 4 . Special . | . . . . Kinetic 100 | 9 10 70 11 Thermal 34 | 9 9 16 . Explosive 6 | . 2 4 . Electromagnetic . | . . . . Robot Hit Streak 22 | 6 9 22 2 Robot Miss Streak 4 | 1 4 3 1 Penetration Max . | . . . . Secondary Targets 1 | . . 1 . Max Gunslinging Chain 1 | . . 1 . Shots Hit Robots 97 | 12 12 68 5 Core Hits 30 | 5 4 18 3 Critical Kills . | . . . . Critical Parts Destroyed . | . . . . Critical Strikes 7 | 1 . 6 . Burn 4 | 1 . 3 . Destroy 1 | . . 1 . Blast 2 | . . 2 . Melee Attacks . | . . . . Impact . | . . . . Slashing . | . . . . Piercing . | . . . . Sneak Attacks . | . . . . Combat Hostiles . | . . . . Follow-up Attacks . | . . . . Damage Inflicted 1339 | 155 146 976 62 Guns 984 | 155 146 648 35 Cannons 145 | . . 118 27 Explosions 206 | . . 206 . Melee . | . . . . Ramming 4 | . . 4 . Kinetic 793 | 68 59 604 62 Thermal 336 | 87 87 162 . Explosive 206 | . . 206 . Electromagnetic . | . . . . Impact . | . . . . Slashing . | . . . . Piercing . | . . . . Highest Corruption . | . . . . Average Corruption . | . . . . Corruption Purged . | . . . . Corruption Blocked . | . . . . Overload Shots . | . . . . Overflow Damage . | . . . . Projectiles . | . . . . Explosions . | . . . . Melee . | . . . . Knockbacks 1 | . . 1 . Impact . | . . . . Kinetic 1 | . . 1 . Secondary . | . . . . Self-Inflicted Damage 2 | . . 2 . Shots . | . . . . Rammed 1 | . . 1 . Targets Rammed 1 | . . 1 . Kicked . | . . . . Crushed . | . . . . Highest Temperature 36 | 27 36 1 27 Average Temperature 12 | 10 15 1 13 Received Heat Transfer 198 | . . 198 . Siege Activations . | . . . . Robots Corrupted . | . . . . Combat Hostiles . | . . . . Parts Fried . | . . . . Impact Corruptions . | . . . . Robots Melted . | . . . . Combat Hostiles . | . . . . Parts Melted 2 | 1 . 1 . Heat Transferred 1295 | 333 259 703 . Parts Sabotaged . | . . . . Parts Stolen . | . . . . Parts Stripped . | . . . . Power Chain Reactions . | . . . . Alert | -11 -10 -10 -8 ------- Run | Yrd Mat Sub Mat Peak Influence 118 | 20 118 . 99 Initial 13 | . 13 . . Average 44 | 6 57 . 45 Maximum Alert Level . | . . . . Low Security (%) 100 | 100 100 . 100 Level 1 . | . . . . Level 2 . | . . . . Level 3 . | . . . . Level 4 . | . . . . Level 5 . | . . . . High Security . | . . . . Max Security . | . . . . Squads Dispatched . | . . . . Investigation . | . . . . Extermination . | . . . . Reinforcement . | . . . . Assault . | . . . . Garrison . | . . . . Intercept . | . . . . Searches Triggered . | . . . . Construction Impeded . | . . . . Haulers Reinforced . | . . . . Active Scanning Responses . | . . . . Cargo Convoy Interrupts . | . . . . Stealth | -11 -10 -10 -8 --------- Run | Yrd Mat Sub Mat Distress Signals 2 | . 1 . 1 Communications Jammed . | . . . . Distress Signals . | . . . . Times Spotted 19 | . 7 10 2 Peak Tracking Total 5 | . 5 2 3 Tactical Retreats 3 | . 1 1 1 Traps | -11 -10 -10 -8 ------- Run | Yrd Mat Sub Mat Traps Triggered . | . . . . Indirectly . | . . . . Trap Hack Attempts . | . . . . Triggered . | . . . . Disarmed . | . . . . Reprogrammed . | . . . . Reused . | . . . . Traps Extracted . | . . . . Installed . | . . . . Triggered 2 | . . 2 . Machines | -11 -10 -10 -8 ---------- Run | Yrd Mat Sub Mat Machines Disabled . | . . . . Max in Single Turn . | . . . . Garrison Access 1 | . . . 1 Machines Repaired . | . . . . Machines Dismantled . | . . . . Machines Sabotaged . | . . . . Overloaded Fab Kills . | . . . . Hacking | -11 -10 -10 -8 --------- Run | Yrd Mat Sub Mat Machines Accessed 3 | . 1 . 2 Terminals 1 | . 1 . . Fabricators . | . . . . Repair Stations 1 | . . . 1 Recycling Units . | . . . . Scanalyzers . | . . . . Garrison Access 1 | . . . 1 Total Hacks 6 | . 3 . 3 Successful 6 | . 3 . 3 Failed . | . . . . Catastrophic . | . . . . Database Lockouts . | . . . . Manual 2 | . 2 . . Terminals 3 | . 3 . . Fabricators . | . . . . Repair Stations 2 | . . . 2 Recycling Units . | . . . . Scanalyzers . | . . . . Garrison Access 1 | . . . 1 Terminal Hacks 1 | . 1 . . Locate Traps 1 | . 1 . . Fabricator Hacks . | . . . . Repair Station Hacks 2 | . . . 2 Scan Component 1 | . . . 1 Repair 1 | . . . 1 Recycling Unit Hacks . | . . . . Scanalyzer . | . . . . Garrison Access Hacks 1 | . . . 1 Seal Access 1 | . . . 1 Unauthorized Hacks 2 | . 2 . . Terminals 2 | . 2 . . Botnet 1 | . 1 . . Skim 1 | . 1 . . Fabricators . | . . . . Repair Stations . | . . . . Recycling Units . | . . . . Scanalyzers . | . . . . Garrison Access . | . . . . Data Cores Recovered . | . . . . Used . | . . . . Hacking Detections 2 | . 1 . 1 Full Trace Events . | . . . . Feedback Events . | . . . . Feedback Blocked . | . . . . Robot Schematics Acquired . | . . . . Robots Built . | . . . . Authchips . | . . . . Time . | . . . . Total Robot Build Rating . | . . . . Part Schematics Acquired . | . . . . Parts Built . | . . . . Authchips . | . . . . Time . | . . . . Total Part Build Rating . | . . . . Parts Repaired 1 | . . . 1 Time 13 | . . . 13 Parts Recycled . | . . . . Recycled Matter . | . . . . Retrieved Matter . | . . . . Retrieved Components . | . . . . Parts Scanalyzed . | . . . . Part Schematics Acquired . | . . . . Parts Damaged . | . . . . Bothacking | -11 -10 -10 -8 ------------ Run | Yrd Mat Sub Mat Used RIF Installer . | . . . . Robots Hacked . | . . . . Non-combat . | . . . . Combat . | . . . . Robot Hacks Applied . | . . . . Relay Couplers Released . | . . . . Fabnet Peak Effective % . | . . . . Robots Rewired . | . . . . Allies Hacked . | . . . . Hacks Repelled . | . . . . Allies | -11 -10 -10 -8 -------- Run | Yrd Mat Sub Mat Total Allies . | . . . . Largest Group . | . . . . Highest-Rated Group . | . . . . Highest-Rated Ally . | . . . . Total Orders . | . . . . Ally Attacks . | . . . . Total Damage . | . . . . Kills . | . . . . Allies Corrupted . | . . . . Allies Melted . | . . . . Intel | -11 -10 -10 -8 ------- Run | Yrd Mat Sub Mat Robot Analysis Total . | . . . . Derelict Logs Recovered . | . . . . Drone Launches . | . . . . Drone Recoveries . | . . . . Exploration | -11 -10 -10 -8 ------------- Run | Yrd Mat Sub Mat Turns Passed 2223 | 136 372 1352 363 Spaces Moved 1470 | 64 146 1021 239 Core 7 | 7 . . . Treads 466 | 57 146 263 . Legs . | . . . . Wheels 997 | . . 758 239 Hover . | . . . . Flight . | . . . . Fastest Speed 50 | 50 160 80 95 Average Speed 111 | 147 160 104 98 Slowest Speed 160 | 160 160 160 131 Overloaded Moves . | . . . . Propulsion Burnouts . | . . . . Robots Hopped . | . . . . Cave-ins Triggered . | . . . . Exploration Rate (%) 24 | 5 18 59 16 Regions Visited 3 Branch Regions 1 Pre-discovered Areas . | . . . . Known Exits Taken . | . . . . Unknown Exits Taken 3 | 1 1 1 . Scrap Searched 2 | . . 2 . Spaces Dug . | . . . . Terrain Destroyed 26 | . 5 21 . Melee . | . . . . Projectile . | . . . . AOE 26 | . 5 21 . Terrain Rammed . | . . . . Walls Destroyed . | . . . . Machines Disabled . | . . . . Actions | -11 -10 -10 -8 --------- Run | Yrd Mat Sub Mat Total 1925 | 84 263 1223 355 Wait 310 | . 103 114 93 Move 1467 | 63 145 1020 239 Hop . | . . . . Pick Up 23 | 5 2 9 7 Fast Attach 14 | 6 . 5 3 Attach 7 | 1 . 4 2 Detach 1 | . . 1 . Swap 11 | . 2 6 3 Drop 13 | . . 10 3 Fire 70 | 9 11 45 5 Melee . | . . . . Ram 1 | . . 1 . Kick . | . . . . Crush . | . . . . Escape Stasis . | . . . . Rewire . | . . . . Trap . | . . . . Miscellaneous 8 | . . 8 . Route ------- -11/Scrapyard -10/Materials -10/Subcaves (discovered 2 exits: *Mat x2) -8/Materials History --------- Turn | Location | Event 13 | -11/Scrapyard | Discovered new exit (range 16) 137 | -11/Scrapyard | Entered Materials 309 | -10/Materials | Build established: Mutant 498 | -10/Materials | Discovered new exit (range 7) 509 | -10/Materials | Entered Subcaves 1248 | -10/Subcaves | A swath of the cavern ceiling suddenly collapsed 1364 | -10/Subcaves | Shifting Twisted Machinery released Barrage Gun 1507 | -10/Subcaves | Core integrity fell below 50% 1658 | -10/Subcaves | Shifting Twisted Machinery released Flamer 1710 | -10/Subcaves | Discovered new exit (range 6) 1828 | -10/Subcaves | Discovered new exit (range 14) 1861 | -10/Subcaves | Entered Materials 1861 | -8/Materials | Evolved 4 slots: Propulsion x1, Utility x2, Weapon x1 1928 | -8/Materials | Repaired Grenade Launcher 2160 | -8/Materials | Build established: Tank 2224 | -8/Materials | Self-destructed Last Messages --------------- 01928_ Acquired Grenade Launcher. 01960_ Acquired Prototype Launcher. 01961_ Identified Adv. EMP Blaster. 01989_ Dropped Melee Analysis Suite. 01991_ Acquired Hrd. Medium Armor Plating. 02001_ Dropped Adv. Weight Redist. System. 02006_ Acquired Recoil Stabilizer. 02036_ R-06 Scavenger collects Adv. Weight Redist. System. 02043_ K-01 Serf collects debris. 02068_ Penetrated by Slug. 02075_ H-55 Commando destroyed. 02134_ Acquired 5 matter. 02179_ Connecting with Garrison Access... >>Seal Access door sealed. 02185_ Dropped Scrap Shield. 02185_ Acquired Huge Storage Unit. 02188_ Acquired Scrap Shield. 02191_ Acquired Imp. Terrain Scan Processor. 02203_ Acquired Lgt. EM Pulse Cannon. Map ----- +----------------------------------------------------+ | ?????????????????????????????????# """ # | | ?????????????????????????????????# """ ###### | | ?????????????????????????????????# """% #????? | | ?????????????????????????????????# % ###### | | ?????????????????????????????????# | | ?????????????????????????????????########## | | ??????????????????????????????????????????# | | ??????????????????????????????????????????# | | ???????????????????????????###########????# ##### | | ???????????????????????????# #????# #???# | | ???????????????????????????# #????# #???# | | ???????????????????????????# """ #????# #???# | | ???????????????????????????# """ #???## ##??# | | ???????????????????????????# " " """ #???# ???# | | ???????????????????????????# "G" #???? ?###+ | | ???????????????????????????# " #???? ?# | | ???????????????????????????# #????# #?# | | ?????????????????????????########+######### #?# | | ?????????????????????????# # ## ### | | ?????????????????????????# ##### # # | | ?????????????????????????# #???# # + | | ?????????????????????????# #???# # # "" | | ???????????????????????###+##### # #### # "R | | ???????????????????????# ## ##??# # "" | | ???????????????????????# ## #???# # " | | ???????????????????????#!@! ## #???# # | | ???????????????????????#!![ ## #####+#### | | ???????????????????????#!![ ## # #?? | | ???????????????????????# ## # """ #?? | | ???????????????????????######### # """ #?? | | ???????????????????????????????# + """ #?? | | ????????????????????????????######### # #?? | | ???????????????????????????? # # #?? | | ???????????????????????????# """"" # ########## | | ???????????????????????????# """"" # # | | ???????????????????????????# """"" + + """ """ | | ???????????????????????????# # # """ """ | | ???????????????????????????# """"" # # """ """ | | ???????????????????????????# """"" ##### | | ???????????????????????????# """"" #???# = | | ???????????????????????????# #???# | | ???????????????????????????##########???# | | ?????????????????????????????????????????######### | | ?????????????????????????????????????????????????? | | | | | | | | | | | | | +----------------------------------------------------+ Best States ------------- Heat Dissipation 31 Coolant Potential 50 Energy Generation 10 Energy Capacity 125 Matter Stores 300 Matter Capacity 300 Sight Range 21 Terrain Scan Density 10 Additional Mass Support 9 Armor Coverage 800 Evasion (%) 44 Recoil Reduction 4 Item Schematics ----------------- None Robot Schematics ------------------ None Fabricated ------------ Nothing Alien Tech Used ----------------- None Achievements -------------- None Challenges ------------ None Game ------ Seed AntigravDeliverySuperbattery Manual? 0 Play Time 00:17:51 Cumulative 20.6 hours Start 2024.09.06 @ 22:56:03 End 2024.09.07 @ 14:03:33 Sessions 3 Manual Loads 0 Difficulty Rogue Special Mode None Game No. 20 Rogue 20 Adventurer 0 Explorer 0 Win Type - Total 0 Types 0/0/0/0/0/0/0/0/0 Lore% 18 Gallery% 34 Achievement% 34 Wizard Run 0 Options --------- Layout 0 ASCII 0 Keyboard 0 Movement Vi Keybinds 0 Fullscreen 2 Font 18/SmallcapsGlow Map View 76x50 Zoom Use 0% Tactical HUD 1 Map Filters NONE Filters NONE Steam 1 RUN: 33994bb0-ccc1-49da-b0eb-891216e7fa28